Cogmind - Beta 14 --- EXPLORER MODE // 2024.11.19 @ 20:55:27 Player: piracy master Result: Self-destructed Performance ------------- Evolutions (3) 1500 Regions Visited (6) 1200 Robots Destroyed (55) 275 Value Destroyed (1595) 1595 Prototype IDs (26) 520 Alien Tech Used (0) 0 Bonus (300) 300 TOTAL SCORE: 5390 Bonus ------- Aligned with FarCom 300 Cogmind --------- Core Integrity 488/700 Matter 69/300 Energy 280/280 System Corruption 3% Temperature Warm (129) Movement Walking (195) Ox1 Location -7/Factory Parts ------- > --- POWER (1) -------- Cooled Ion Engine > --- PROPULSION (5) --- Improved Aluminum Leg Titanium Leg > --- UTILITY (4) ------ Medium Storage Unit Structural Scanner Hardened Medium Armor Plating Hardened Medium Armor Plating > --- WEAPON (4) ------- Gatling Laser Gatling Laser Flak Gun Flak Gun > --- INVENTORY (10) --- Light Ion Engine Advanced Heat Sink Weapon Shielding Reactive Plating Medium Reflective Plating Grenade Launcher Peak State ------------ > --- POWER ------------ Cooled Ion Engine > --- PROPULSION ------- Improved Aluminum Leg Titanium Leg Improved Titanium Leg > --- UTILITY ---------- Medium Storage Unit Structural Scanner Hardened Medium Armor Plating Hardened Medium Armor Plating > --- WEAPON ----------- Gatling Laser Gatling Laser Flak Gun Flak Gun > --- INVENTORY -------- Light Ion Engine Advanced Heat Sink Weapon Shielding Reactive Plating Medium Reflective Plating Grenade Launcher [Rating: 37] Favorites ----------- Power Light Ion Engine Engine Light Ion Engine Propulsion Aluminum Leg Leg Aluminum Leg Utility Hardened Medium Armor Plating Device Structural Scanner Storage Medium Storage Unit Protection Hardened Medium Armor Plating Weapon Heavy Assault Rifle Energy Gun Gatling Laser Ballistic Gun Heavy Assault Rifle Launcher Grenade Launcher Special Weapon Welding Torch Build | -11 -10 -10 -10 -9 -8 -7 ------- Run | Yrd Mat Min Exi Min Mat Fac Slots Evolved 7 | . 1 . . . 4 2 Power . | . . . . . . . Propulsion 3 | . . . . . 1 2 Utility 2 | . 1 . . . 1 . Weapon 2 | . . . . . 2 . Parts Attached 38 | 6 6 . 1 . 10 15 Power 6 | . 1 . . . 2 3 Engine 6 | . 1 . . . 2 3 Core . | . . . . . . . Reactor . | . . . . . . . Propulsion 6 | 2 . . . . 1 3 Treads . | . . . . . . . Leg 6 | 2 . . . . 1 3 Wheel . | . . . . . . . Hover . | . . . . . . . Flight . | . . . . . . . Utility 13 | 2 4 . 1 . 4 2 Device 1 | . 1 . . . . . Storage 4 | 1 2 . 1 . . . Processor . | . . . . . . . Hackware . | . . . . . . . Protection 8 | 1 1 . . . 4 2 Artifact . | . . . . . . . Weapon 13 | 2 1 . . . 3 7 Energy Gun 2 | . . . . . . 2 Energy Cannon . | . . . . . . . Ballistic Gun 9 | 2 1 . . . 3 3 Ballistic Cannon . | . . . . . . . Launcher 1 | . . . . . . 1 Special Weapon 1 | . . . . . . 1 Impact Weapon . | . . . . . . . Slashing Weapon . | . . . . . . . Piercing Weapon . | . . . . . . . Special Melee Weapon . | . . . . . . . Unidentified Prototypes 1 | . . . . . 1 . Parts Lost 8 | . . . . . . 8 Power . | . . . . . . . Propulsion 2 | . . . . . . 2 Utility 2 | . . . . . . 2 Weapon 4 | . . . . . . 4 Highest Loss Streak 7 | . . . . . . 7 To Critical Strikes . | . . . . . . . Average Slot Usage (%) 97 | . 93 100 99 100 98 95 Engine 8 | . 6 12 12 12 8 7 Leg 27 | . 25 25 25 25 24 32 Device 8 | . 12 12 12 12 8 7 Storage 8 | . 12 12 11 12 8 7 Protection 14 | . 12 12 12 12 16 13 Ballistic Gun 27 | . 25 25 25 25 31 24 Peak Build Rating 37 | 6 8 8 11 8 20 37 Average Rating 20 | 4 7 8 8 8 17 31 On Entrance 8 | . 6 8 8 8 8 20 Naked Turns . | . . . . . . . Heaviest Build 51 | 17 20 20 20 20 39 51 Greatest Support 72 | 20 20 20 20 20 33 72 Greatest Overweight (x) 1 | . . . . . 1 1 Average Overweight (x) . | . . . . . . . Largest Inventory Capacity 15 | 10 15 10 10 10 10 10 Average Capacity 9 | 8 10 10 9 10 10 10 Most Carried 9 | 6 6 4 7 4 9 9 Average Carried 5 | 3 3 4 4 4 5 7 Final Capacity 10 | 10 10 10 10 10 10 10 Final Carried 7 | 4 4 4 4 4 7 6 Class Distribution -------------------- 60% | Hacker-Tank 27% | Hacker-Mutant 11% | Hacker-Skirmisher Dominant Class ---------------- Hacker-Mutant | -10/Materials Hacker-Mutant | -10/Mines Hacker-Mutant | -10/Exiles Hacker-Mutant | -9/Mines Hacker-Tank | -8/Materials Hacker-Tank | -7/Factory Resources | -11 -10 -10 -10 -9 -8 -7 ----------- Run | Yrd Mat Min Exi Min Mat Fac Matter Collected 1528 | 226 47 127 . 36 613 479 Remotely . | . . . . . . . Salvage Created 2099 | 63 76 34 . 43 950 933 Parts 135 | 5 12 4 . 4 65 45 Haulers Intercepted 2 | . . . . . 2 . Recyclers Shooed 2 | . 1 . . 1 . . Parts Field Recycled . | . . . . . . . Retrieved Matter . | . . . . . . . Parts Self-Destructed . | . . . . . . . Prevented . | . . . . . . . Kills | -11 -10 -10 -10 -9 -8 -7 ------- Run | Yrd Mat Min Exi Min Mat Fac Combat Hostiles Destroyed 31 | . 2 2 . 2 10 15 Guns 30 | . 2 2 . 2 10 14 AOE 1 | . . . . . . 1 Classes Destroyed 12 | 1 3 . . . 6 2 Worker 8 | . 1 . . 1 6 . Builder 5 | . . . . . 1 4 Hauler 2 | . . . . . 2 . Recycler 3 | 1 . . . . 1 1 Mechanic 1 | . . . . . 1 . Watcher 5 | . 1 . . . 3 1 Swarmer 6 | . 2 2 . 2 . . Grunt 6 | . . . . . 4 2 Brawler 2 | . . . . . . 2 Sentry 14 | . . . . . 4 10 Hunter 2 | . . . . . 2 . Programmer 1 | . . . . . . 1 Best Kill Streak 7 | 1 2 2 . 2 5 7 Combat Bots Only 5 | . 2 2 . 2 2 5 Max Kills in Single Turn 2 | 1 1 1 . 1 2 2 Gunslinging . | . . . . . . . Exploded 1 | . . . . . . 1 Melee . | . . . . . . . Uniques/NPCs Destroyed . | . . . . . . . Combat | -11 -10 -10 -10 -9 -8 -7 -------- Run | Yrd Mat Min Exi Min Mat Fac Hostile Shots Fired 396 | . 6 7 . 8 65 310 Missed 111 | . . 3 . 4 17 87 Damage Taken 1947 | . 26 17 . 18 438 1448 Core 282 | . 4 . . 6 60 212 Absorbed by Shields . | . . . . . . . Redirected to Shielding 27 | . . . . . 27 . Ignored by Resistances 1188 | . 19 12 . 14 263 880 Regen/Repaired (Parts) 27 | . . . . . . 27 Core Remaining (%) 95 | 100 . . . 96 89 . Volleys Fired 139 | 3 10 3 . 7 59 57 Largest 4 | 2 2 2 . 2 4 4 Hottest 216 | 40 40 40 . 40 86 216 Shots Fired 452 | 6 20 6 . 14 220 186 Gun 446 | 6 20 6 . 14 220 180 Cannon . | . . . . . . . Launcher 4 | . . . . . . 4 Special 2 | . . . . . . 2 Kinetic 432 | 6 20 6 . 14 220 166 Thermal 16 | . . . . . . 16 Explosive 4 | . . . . . . 4 Electromagnetic . | . . . . . . . Robot Hit Streak 38 | 6 15 4 . 8 26 38 Robot Miss Streak 3 | . 1 1 . 3 2 1 Penetration Max . | . . . . . . . Secondary Targets 3 | . . . . 1 . 2 Max Gunslinging Chain 1 | . . . . 1 . 1 Shots Hit Robots 288 | 6 15 4 . 8 138 117 Core Hits 142 | 2 6 2 . 4 52 76 Critical Kills 1 | . . . . . . 1 Critical Parts Destroyed 2 | . . . . . 2 . Critical Strikes 3 | . . . . . 2 1 Destroy 3 | . . . . . 2 1 Melee Attacks . | . . . . . . . Impact . | . . . . . . . Slashing . | . . . . . . . Piercing . | . . . . . . . Sneak Attacks . | . . . . . . . Combat Hostiles . | . . . . . . . Follow-up Attacks . | . . . . . . . Damage Inflicted 4348 | 75 177 42 . 91 1610 2353 Guns 3988 | 75 177 42 . 85 1610 1999 Cannons . | . . . . . . . Explosions 330 | . . . . . . 330 Melee . | . . . . . . . Ramming 30 | . . . . 6 . 24 Kinetic 3714 | 75 177 42 . 85 1610 1725 Thermal 274 | . . . . . . 274 Explosive 330 | . . . . . . 330 Electromagnetic . | . . . . . . . Impact . | . . . . . . . Slashing . | . . . . . . . Piercing . | . . . . . . . Highest Corruption 3 | . . . . . . 3 Average Corruption 1 | . . . . . . 1 Corruption Purged . | . . . . . . . Corruption Blocked . | . . . . . . . Effects 9 | . . . . . . 9 Message Errors 1 | . . . . . . 1 Matter Fused 2 | . . . . . . 2 Heat Flow Errors 4 | . . . . . . 4 Data Loss (minor) 1 | . . . . . . 1 Alerts 1 | . . . . . . 1 Overload Shots . | . . . . . . . Overflow Damage . | . . . . . . . Projectiles . | . . . . . . . Explosions . | . . . . . . . Melee . | . . . . . . . Knockbacks 1 | . . . . . . 1 Impact 1 | . . . . . . 1 Kinetic . | . . . . . . . Secondary . | . . . . . . . Self-Inflicted Damage 190 | . . . . . . 190 Shots 4 | . . . . . . 4 Rammed . | . . . . . . . Targets Rammed 2 | . . . . 1 . 1 Kicked 2 | . . . . 1 . 1 Crushed . | . . . . . . . Highest Temperature 615 | . 6 6 . 12 220 615 Average Temperature 120 | . 4 4 . 5 54 180 Received Heat Transfer 723 | . . . . . 162 561 Effects 13 | . . . . . . 13 Shutdowns 1 | . . . . . . 1 Energy Bleed 3 | . . . . . . 3 Matter Decay 1 | . . . . . . 1 Short Circuit 2 | . . . . . . 2 Damage (minor) 5 | . . . . . . 5 Damage (core) 1 | . . . . . . 1 Siege Activations . | . . . . . . . Robots Corrupted . | . . . . . . . Combat Hostiles . | . . . . . . . Parts Fried . | . . . . . . . Impact Corruptions . | . . . . . . . Robots Melted . | . . . . . . . Combat Hostiles . | . . . . . . . Parts Melted . | . . . . . . . Heat Transferred 625 | . . . . . . 625 Parts Sabotaged . | . . . . . . . Parts Stolen . | . . . . . . . Parts Stripped . | . . . . . . . Power Chain Reactions . | . . . . . . . Alert | -11 -10 -10 -10 -9 -8 -7 ------- Run | Yrd Mat Min Exi Min Mat Fac Peak Influence 286 | 5 79 71 . 55 286 253 Initial 21 | . 2 21 . . 14 . Average 66 | . 53 41 . 31 91 57 Maximum Alert Level 1 | . . . . . 1 1 Low Security (%) 94 | 100 100 100 . 100 87 99 Level 1 5 | . . . . . 12 . Level 2 . | . . . . . . . Level 3 . | . . . . . . . Level 4 . | . . . . . . . Level 5 . | . . . . . . . High Security . | . . . . . . . Max Security . | . . . . . . . Squads Dispatched 14 | . . . . . 3 11 Investigation 1 | . . . . . . 1 Extermination 1 | . . . . . . 1 Reinforcement . | . . . . . . . Assault . | . . . . . . . Garrison 12 | . . . . . 3 9 Intercept . | . . . . . . . Searches Triggered . | . . . . . . . Construction Impeded . | . . . . . . . Haulers Reinforced . | . . . . . . . Active Scanning Responses . | . . . . . . . Cargo Convoy Interrupts . | . . . . . . . Stealth | -11 -10 -10 -10 -9 -8 -7 --------- Run | Yrd Mat Min Exi Min Mat Fac Distress Signals 1 | . . . . . . 1 Communications Jammed . | . . . . . . . Distress Signals . | . . . . . . . Times Spotted 41 | . 5 2 . 2 15 17 Peak Tracking Total 3 | . 2 2 . 2 3 3 Tactical Retreats 4 | . 1 . . . 2 1 Traps | -11 -10 -10 -10 -9 -8 -7 ------- Run | Yrd Mat Min Exi Min Mat Fac Traps Triggered 3 | . . . . . . 3 Indirectly . | . . . . . . . Trap Hack Attempts . | . . . . . . . Triggered . | . . . . . . . Disarmed . | . . . . . . . Reprogrammed . | . . . . . . . Reused . | . . . . . . . Traps Extracted . | . . . . . . . Installed . | . . . . . . . Triggered . | . . . . . . . Machines | -11 -10 -10 -10 -9 -8 -7 ---------- Run | Yrd Mat Min Exi Min Mat Fac Machines Disabled 8 | . . . . . 1 7 Max in Single Turn 5 | . . . . . 1 5 Garrison Access 1 | . . . . . 1 . Machines Repaired . | . . . . . . . Machines Dismantled . | . . . . . . . Machines Sabotaged . | . . . . . . . Overloaded Fab Kills . | . . . . . . . Hacking | -11 -10 -10 -10 -9 -8 -7 --------- Run | Yrd Mat Min Exi Min Mat Fac Machines Accessed 15 | . 2 . 2 . 4 7 Terminals 6 | . 2 . . . 3 1 Fabricators 2 | . . . . . . 2 Repair Stations 1 | . . . . . . 1 Recycling Units 1 | . . . . . . 1 Scanalyzers 1 | . . . . . . 1 Garrison Access 2 | . . . . . 1 1 Total Hacks 34 | . 6 . 5 . 9 14 Successful 16 | . 1 . 5 . 2 8 Failed 18 | . 5 . . . 7 6 Catastrophic 6 | . 2 . . . 2 2 Database Lockouts . | . . . . . . . Manual 12 | . 2 . 2 . 6 2 Terminals 14 | . 6 . . . 6 2 Fabricators 3 | . . . . . . 3 Repair Stations 2 | . . . . . . 2 Recycling Units 3 | . . . . . . 3 Scanalyzers 2 | . . . . . . 2 Garrison Access 5 | . . . . . 3 2 Terminal Hacks 7 | . 1 . 5 . 1 . Record 4 | . . . 4 . . . Prototype ID Bank 1 | . 1 . . . . . Unreport Threat 1 | . . . . . 1 . Derelict Proto ID Bank 1 | . . . 1 . . . Fabricator Hacks 2 | . . . . . . 2 Network Status 1 | . . . . . . 1 Load Schematic 1 | . . . . . . 1 Repair Station Hacks 2 | . . . . . . 2 Scan Component 1 | . . . . . . 1 Repair 1 | . . . . . . 1 Recycling Unit Hacks 2 | . . . . . . 2 Process 1 | . . . . . . 1 Retrieve Components 1 | . . . . . . 1 Scanalyzer 2 | . . . . . . 2 Insert Component 1 | . . . . . . 1 Analyze 1 | . . . . . . 1 Garrison Access Hacks 1 | . . . . . 1 . Seal Access 1 | . . . . . 1 . Unauthorized Hacks . | . . . . . . . Terminals . | . . . . . . . Fabricators . | . . . . . . . Repair Stations . | . . . . . . . Recycling Units . | . . . . . . . Scanalyzers . | . . . . . . . Garrison Access . | . . . . . . . Data Cores Recovered . | . . . . . . . Used . | . . . . . . . Hacking Detections 12 | . 2 . . . 4 6 Full Trace Events 1 | . . . . . . 1 Feedback Events . | . . . . . . . Feedback Blocked . | . . . . . . . Robot Schematics Acquired . | . . . . . . . Robots Built . | . . . . . . . Authchips . | . . . . . . . Time . | . . . . . . . Total Robot Build Rating . | . . . . . . . Part Schematics Acquired 1 | . . . . . . 1 Parts Built . | . . . . . . . Authchips . | . . . . . . . Time . | . . . . . . . Total Part Build Rating . | . . . . . . . Parts Repaired 1 | . . . . . . 1 Time 26 | . . . . . . 26 Parts Recycled . | . . . . . . . Recycled Matter 29 | . . . . . . 29 Retrieved Matter . | . . . . . . . Retrieved Components . | . . . . . . . Parts Scanalyzed 1 | . . . . . . 1 Part Schematics Acquired 1 | . . . . . . 1 Parts Damaged . | . . . . . . . Bothacking | -11 -10 -10 -10 -9 -8 -7 ------------ Run | Yrd Mat Min Exi Min Mat Fac Used RIF Installer . | . . . . . . . Robots Hacked . | . . . . . . . Non-combat . | . . . . . . . Combat . | . . . . . . . Robot Hacks Applied . | . . . . . . . Relay Couplers Released . | . . . . . . . Fabnet Peak Effective % . | . . . . . . . Robots Rewired . | . . . . . . . Allies Hacked . | . . . . . . . Hacks Repelled . | . . . . . . . Allies | -11 -10 -10 -10 -9 -8 -7 -------- Run | Yrd Mat Min Exi Min Mat Fac Total Allies . | . . . . . . . Largest Group . | . . . . . . . Highest-Rated Group . | . . . . . . . Highest-Rated Ally . | . . . . . . . Total Orders . | . . . . . . . Ally Attacks . | . . . . . . . Total Damage . | . . . . . . . Kills . | . . . . . . . Allies Corrupted . | . . . . . . . Allies Melted . | . . . . . . . Intel | -11 -10 -10 -10 -9 -8 -7 ------- Run | Yrd Mat Min Exi Min Mat Fac Robot Analysis Total . | . . . . . . . Derelict Logs Recovered . | . . . . . . . Drone Launches . | . . . . . . . Drone Recoveries . | . . . . . . . Exploration | -11 -10 -10 -10 -9 -8 -7 ------------- Run | Yrd Mat Min Exi Min Mat Fac Turns Passed 3125 | 76 224 104 278 198 1079 1166 Spaces Moved 1560 | 47 145 77 229 148 405 509 Core 6 | 6 . . . . . . Treads . | . . . . . . . Legs 1554 | 41 145 77 229 148 405 509 Wheels . | . . . . . . . Hover . | . . . . . . . Flight . | . . . . . . . Fastest Speed 50 | 50 120 120 120 120 120 116 Average Speed 133 | 111 120 120 120 120 163 127 Slowest Speed 196 | 120 120 120 120 120 190 196 Overloaded Moves . | . . . . . . . Propulsion Burnouts . | . . . . . . . Robots Hopped . | . . . . . . . Cave-ins Triggered . | . . . . . . . Exploration Rate (%) 32 | 4 31 25 60 55 39 14 Regions Visited 6 Branch Regions 3 Pre-discovered Areas . | . . . . . . . Known Exits Taken 6 | 1 1 1 1 1 1 . Unknown Exits Taken . | . . . . . . . Scrap Searched 2 | . . 1 . 1 . . Spaces Dug . | . . . . . . . Terrain Destroyed 87 | . . . . . . 87 Melee . | . . . . . . . Projectile . | . . . . . . . AOE 87 | . . . . . . 87 Terrain Rammed 2 | . . . . . . 2 Walls Destroyed . | . . . . . . . Machines Disabled . | . . . . . . . Actions | -11 -10 -10 -10 -9 -8 -7 --------- Run | Yrd Mat Min Exi Min Mat Fac Total 2303 | 65 175 83 233 155 688 904 Wait 513 | . 10 4 . . 198 301 Move 1554 | 46 144 76 228 147 404 509 Hop . | . . . . . . . Pick Up 39 | 10 3 . 2 . 12 12 Fast Attach . | . . . . . . . Attach 27 | 6 3 . 1 . 4 13 Detach 3 | . 1 . . . . 2 Swap 11 | . 3 . . . 6 2 Drop 13 | . 1 . 2 . 5 5 Fire 139 | 3 10 3 . 7 59 57 Melee . | . . . . . . . Ram 2 | . . . . . . 2 Kick 2 | . . . . 1 . 1 Crush . | . . . . . . . Escape Stasis . | . . . . . . . Rewire . | . . . . . . . Trap . | . . . . . . . Miscellaneous . | . . . . . . . Route ------- -11/Scrapyard -10/Materials (discovered 2 exits: *Mat / *Min) -10/Mines -10/Exiles -9/Mines -8/Materials -7/Factory History --------- Turn | Location | Event 2 | -11/Scrapyard | Met Revision 17 3 | -11/Scrapyard | Identified exit to Materials 3 | -11/Scrapyard | Discovered exit to Materials (range 15) 77 | -11/Scrapyard | Entered Materials 77 | -10/Materials | Evolved 1 slot: Utility x1 245 | -10/Materials | Identified exit to Materials 245 | -10/Materials | Discovered exit to Materials (range 3) 268 | -10/Materials | Identified exit to Mines 268 | -10/Materials | Discovered exit to Mines (range 15) 301 | -10/Materials | Entered Mines 304 | -10/Mines | Build established: Hacker-Mutant 400 | -10/Mines | Deemed a non-threat by the Exiles lab entrance 400 | -10/Mines | Identified exit to Exiles 400 | -10/Mines | Discovered exit to Exiles (range 5) 405 | -10/Mines | Entered Exiles 435 | -10/Exiles | Met 8R-AWN 458 | -10/Exiles | Met EX-HEX 492 | -10/Exiles | Met EX-BIN 506 | -10/Exiles | Aligned with FarCom system 507 | -10/Exiles | Given EX-Vault access code 539 | -10/Exiles | Opened EX-Vault 554 | -10/Exiles | Found Lightpack 2.0 582 | -10/Exiles | Warned to stay clear of 0b10 Research branches 617 | -10/Exiles | Met EX-DEC 667 | -10/Exiles | Identified exit to Mines 667 | -10/Exiles | Discovered exit to Mines (range 14) 683 | -10/Exiles | Entered Mines 873 | -9/Mines | Identified exit to Materials 873 | -9/Mines | Discovered exit to Materials (range 7) 881 | -9/Mines | Entered Materials 881 | -8/Materials | Evolved 4 slots: Propulsion x1, Utility x1, Weapon x2 1447 | -8/Materials | Build established: Hacker-Tank 1494 | -8/Materials | Garrison activated, responded to threat 1923 | -8/Materials | Identified exit to Factory 1923 | -8/Materials | Discovered exit to Factory (range 9) 1960 | -8/Materials | Entered Factory 1960 | -7/Factory | Evolved 2 slots: Propulsion x2 2258 | -7/Factory | Repaired Weapon Shielding 2982 | -7/Factory | Lost 7 parts (2n2u3w) 3126 | -7/Factory | Self-destructed Last Messages --------------- 03051_ Imp. Titanium Leg broken. 03051_ Overheating: Short circuit. 03052_ K-01 Serf collects debris. 03053_ U-05 Engineer lays Concrete. 03080_ Connecting with Fabricator... >>Load(Cld. Ion Engine) Uploading Cld. Ion Engine schematic... Loaded successfully: Cld. Ion Engine Rating: 2p Time: 49 Initiate build sequence. 03080_ Dropped Broken Imp. Titanium Leg. 03082_ System corrupted: Matter fused (-10). 03118_ R-06 Scavenger collects Broken Imp. Titanium Leg. 03120_ R-06 Scavenger destroyed. 03125_ Fusion Modulator explodes. 03125_ Fabricator disabled. 03125_ Fusion Modulator explodes. Map ----- +----------------------------------------------------+ | ?????????? ^ ?????? | | ????????? ????? | | ????????? =! ?????? | | ????????? = %!=| """" """??????? | | ????????????#####+#########+#### """"??????????? | | ????????? # [!=!*=%*# """"??????????? | | ????????? # %% ""G""!# """???????????? | | ????????? ! # ! !" " # """???????????? | | ????????? # " " # """???????????? | | ????????? # % #Y ???????????? | | ?????????? # * # """"??????????? | | ??????????? # # """"??????????? | | ??????????? #############+###### """???????????? | | ??????????? ### ####### """???????????? | | ???????????? # # #### """???????????? | | ???????????? #########??## """" !! ?????? | | ???????????? ########???## ?????? | | ??????????????????????#### u ?????? | | ????????????????????######## ###??????? | | ????????????????????#### # ; ###### ###??????? | | ??????????????????? ##;;;;;;;;;#### g ##???????? | | ??????????????????? ## # ##???????? | | ??????????????????? #; ; ???????? | | ??????????????????? #; = ; ##?????????? | | ??????????????????? #; ##?????????? | | ??????????????????? #; @ ##?????????? | | ??????????????????? # # ?????????? | | ??????????????????? #; # ?????????? | | ??????????????????? #; # ?????????? | | ??????????????????? #; # ?????????? | | ??????????????????? #; # ?????????? | | ??????????????????? ## ; + ?????????? | | ??????????????????? ## ; # ?????????? | | ????????????????????####;;;; ;;;;## ##?????????? | | ???????????????????? ### #?????????? | | ??????????????????????## ??????????????? | | ?????????????????????? ?????????????? | | ??????????????????????? u ??????????????? | | ??????????????????????? k ????????????????? | | ??????????????????????? """